Department family,Entity,Date,Expense type,Expense area,Supplier,Transaction number,Amount,VAT registration number
Dept of Health,MHRA,02/09/2016,Help desk and end user support,Information Management,CORETX MANAGE LIMITED,600106317,35835.19,123385037
Dept of Health,MHRA,02/09/2016,Professional Services,Information Management,"ERNST & YOUNG, LLP",600106423,46140,773831408
Dept of Health,MHRA,02/09/2016,Testing Services,Information Management,HOME OFFICE,600106292,34530,888816061
Dept of Health,MHRA,02/09/2016,Testing Services,Information Management,HOME OFFICE,600106293,36570,888816061
Dept of Health,MHRA,02/09/2016,Application Services and Maintenance,Information Management,REDROCK CONSULTING LTD,600105978,76197.37,862247715
Dept of Health,MHRA,02/09/2016,"Service, Integration & Management",Information Management,REDROCK CONSULTING LTD,600106260,79406.17,862247715
Dept of Health,MHRA,02/09/2016,Application Services and Maintenance,Information Management,REDROCK CONSULTING LTD,600106319,104378.36,862247715
Dept of Health,MHRA,05/09/2016,EU pre-financing project payment,Vigilance and Risk Management of Medicines,EPIDEMICO INC,600106471,57452.06,
Dept of Health,MHRA,06/09/2016,Laboratory,"Inspection, Enforcement & Standards",LGC (TEDDINGTON) LTD,600106506,408018.3,674056721
Dept of Health,MHRA,07/09/2016,Application Services and Maintenance,Information Management,REDROCK CONSULTING LTD,600106020,113486.14,862247715
Dept of Health,MHRA,07/09/2016,Application Services and Maintenance,Information Management,REDROCK CONSULTING LTD,600106245,26942.16,862247715
Dept of Health,MHRA,07/09/2016,"Service, Integration & Management",Information Management,REDROCK CONSULTING LTD,600106250,40720.92,862247715
Dept of Health,MHRA,07/09/2016,Application Services and Maintenance,Information Management,REDROCK CONSULTING LTD,600106267,38000.3,862247715
Dept of Health,MHRA,07/09/2016,Application Services and Maintenance,Information Management,REDROCK CONSULTING LTD,600106274,130053.68,862247715
Dept of Health,MHRA,07/09/2016,"Service, Integration & Management",Information Management,REDROCK CONSULTING LTD,600106278,30456.38,862247715
Dept of Health,MHRA,07/09/2016,IT Security,Information Management,REDROCK CONSULTING LTD,600106315,45684.07,862247715
Dept of Health,MHRA,07/09/2016,"Service, Integration & Management",Information Management,REDROCK CONSULTING LTD,600106332,59509.25,862247715
Dept of Health,MHRA,07/09/2016,Enterprise Architecture,Information Management,REDROCK CONSULTING LTD,600106456,49403.91,862247715
Dept of Health,MHRA,07/09/2016,Application Services and Maintenance,Information Management,REDROCK CONSULTING LTD,600106458,27964.08,862247715
Dept of Health,MHRA,07/09/2016,Portfolio Services,Information Management,REDROCK CONSULTING LTD,600106464,83105.76,862247715
Dept of Health,MHRA,09/09/2016,Premises Rental,Facilities & Estates,DEPARTMENT FOR BUSINESS INNOVATION AND SKILLS,600106473,60715,888825550
Dept of Health,MHRA,09/09/2016,Application Services and Maintenance,Information Management,ACCENTURE,600106394,140110.8,788629066
Dept of Health,MHRA,09/09/2016,Capital Expenditure,Information Management,DELL CORPORATION LTD,600106477,42144,635823528
Dept of Health,MHRA,09/09/2016,Application Services and Maintenance,Information Management,EXTEDO IABG LIFE SCIENCES SOLUTIONS,600105464,47124,
Dept of Health,MHRA,09/09/2016,Infrastructure Services and Maintenance,Information Management,NTT DATA UK LIMITED,600106465,138788.6,159334590
Dept of Health,MHRA,09/09/2016,Portfolio Services,Information Management,REDROCK CONSULTING LTD,600106533,48684.21,862247715
Dept of Health,MHRA,09/09/2016,Infrastructure Services and Maintenance,Information Management,REDROCK CONSULTING LTD,600106556,51333.74,862247715
Dept of Health,MHRA,09/09/2016,Professional Services,Information Management,REDROCK CONSULTING LTD,600106567,39298.56,862247715
Dept of Health,MHRA,09/09/2016,Application Services and Maintenance,Information Management,REDROCK CONSULTING LTD,600106576,97369.2,862247715
Dept of Health,MHRA,09/09/2016,Application Services and Maintenance,Information Management,REDROCK CONSULTING LTD,600106578,93758.69,862247715
Dept of Health,MHRA,09/09/2016,Application Services and Maintenance,Information Management,REDROCK CONSULTING LTD,600106585,57155.54,862247715
Dept of Health,MHRA,09/09/2016,Laptops,Information Management,XMA LTD,600106643,137153.38,115091937
Dept of Health,MHRA,09/09/2016,Capital Expenditure,"Inspection, Enforcement & Standards",COMMERCIAL SERVICES UK LTD,600106518,91200,130597616
Dept of Health,MHRA,09/09/2016,Solicitors,Policy,CPS,600106569,68851.5,888823164
Dept of Health,MHRA,16/09/2016,External Audit,Finance & Procurement,NATIONAL AUDIT OFFICE,600106819,59000,417632457
Dept of Health,MHRA,16/09/2016,Application Services and Maintenance,Information Management,ACCENTURE,600106592,26500,788629066
Dept of Health,MHRA,16/09/2016,Application Services and Maintenance,Information Management,ACCENTURE,600106630,246500,788629066
Dept of Health,MHRA,16/09/2016,Capital Expenditure,Information Management,APPIAN EUROPE LTD,600106428,59536,
Dept of Health,MHRA,16/09/2016,Infrastructure Services and Maintenance,Information Management,FOCUS GROUP EUROPE LTD,600106590,43200,976362481
Dept of Health,MHRA,16/09/2016,Application Services and Maintenance,Information Management,ORACLE CORPORATION UK LIMITED,600106509,29797.86,391313073
Dept of Health,MHRA,16/09/2016,Central Training,Information Management,ORACLE CORPORATION UK LIMITED,600106510,26314.2,391313073
Dept of Health,MHRA,16/09/2016,Application Services and Maintenance,Information Management,REDROCK CONSULTING LTD,600106546,152196.6,862247715
Dept of Health,MHRA,16/09/2016,Laboratory,"Inspection, Enforcement & Standards",LGC (TEDDINGTON) LTD,600106505,424518.3,674056721
Dept of Health,MHRA,20/09/2016,Application Services and Maintenance,Information Management,ACCENTURE,600106774,123990.9,788629066
Dept of Health,MHRA,20/09/2016,Infrastructure Services and Maintenance,Information Management,EMC COMPUTER SYSTEMS UK LTD,600106520,34072.04,611862259
Dept of Health,MHRA,20/09/2016,Enterprise Architecture,Information Management,REPLY LIMITED,600106599,109778.4,742468814
Dept of Health,MHRA,20/09/2016,Enterprise Architecture,Information Management,REPLY LIMITED,600106755,51360,742468814
Dept of Health,MHRA,20/09/2016,Enterprise Architecture,Information Management,REPLY LIMITED,600106757,30816,742468814
Dept of Health,MHRA,21/09/2016,Help desk and end user support,Information Management,CORETX MANAGE LIMITED,600106777,35835.19,123385037
Dept of Health,MHRA,21/09/2016,Application Services and Maintenance,Information Management,ORACLE CORPORATION UK LIMITED,600106507,270000,391313073
Dept of Health,MHRA,21/09/2016,Capital Expenditure,Information Management,XMA LTD,600106582,149947.43,115091937
Dept of Health,MHRA,27/09/2016,Facilities Management,Facilities & Estates,DEPARTMENT FOR BUSINESS INNOVATION AND SKILLS,600106786,16654.1,888825550
Dept of Health,MHRA,27/09/2016,Premises Rental,Facilities & Estates,DEPARTMENT FOR BUSINESS INNOVATION AND SKILLS,600106786,716659.35,888825550
Dept of Health,MHRA,27/09/2016,Service Charge,Facilities & Estates,DEPARTMENT FOR BUSINESS INNOVATION AND SKILLS,600106786,183107.29,888825550
Dept of Health,MHRA,27/09/2016,Rates,Facilities & Estates,DEPARTMENT FOR BUSINESS INNOVATION AND SKILLS,600106786,433280.68,888825550
Dept of Health,MHRA,27/09/2016,Building Maintenance & Utilities,Facilities & Estates,DEPARTMENT FOR BUSINESS INNOVATION AND SKILLS,600106786,65163.26,888825550
Dept of Health,MHRA,27/09/2016,Security,Facilities & Estates,DEPARTMENT FOR BUSINESS INNOVATION AND SKILLS,600106786,32288.34,888825550
Dept of Health,MHRA,27/09/2016,Cleaning,Facilities & Estates,DEPARTMENT FOR BUSINESS INNOVATION AND SKILLS,600106786,21745.51,888825550
Dept of Health,MHRA,27/09/2016,Postage,Facilities & Estates,DEPARTMENT FOR BUSINESS INNOVATION AND SKILLS,600106786,15528.51,888825550
Dept of Health,MHRA,27/09/2016,Staff Restaurant,Facilities & Estates,DEPARTMENT FOR BUSINESS INNOVATION AND SKILLS,600106786,28293.38,888825550
Dept of Health,MHRA,27/09/2016,Capital Expenditure,Information Management,APPIAN EUROPE LTD,600106722,46400,
Dept of Health,MHRA,27/09/2016,Capital Expenditure,Information Management,DELL CORPORATION LTD,600106982,79020,635823528
Dept of Health,MHRA,27/09/2016,Capital Expenditure,Information Management,DELL CORPORATION LTD,600106984,79020,635823528
Dept of Health,MHRA,27/09/2016,Application Services and Maintenance,Information Management,ORACLE CORPORATION UK LIMITED,600106508,342000,391313073
Dept of Health,MHRA,27/09/2016,Capital Expenditure,Information Management,XMA LTD,600106623,1367983.07,115091937
Dept of Health,MHRA,28/09/2016,Application Services and Maintenance,Information Management,ACCENTURE,600107041,58060.8,788629066
Dept of Health,MHRA,28/09/2016,Capital Expenditure,Information Management,ACCENTURE,600107043,60862.8,788629066
Dept of Health,MHRA,28/09/2016,Capital Expenditure,Information Management,ACCENTURE,600107044,89245.2,788629066
Dept of Health,MHRA,28/09/2016,Capital Expenditure,Information Management,APPIAN EUROPE LTD,600106857,85241,
Dept of Health,MHRA,28/09/2016,"Service, Integration & Management",Information Management,NETWORKERS INTERNATIONAL (UK) PLC,600106782,27125.16,766375002
Dept of Health,MHRA,28/09/2016,Application Services and Maintenance,Information Management,REDROCK CONSULTING LTD,600106530,31753.63,862247715
Dept of Health,MHRA,28/09/2016,Application Services and Maintenance,Information Management,REDROCK CONSULTING LTD,600106553,28631.81,862247715
Dept of Health,MHRA,28/09/2016,Enterprise Architecture,Information Management,REDROCK CONSULTING LTD,600106573,58941.5,862247715
Dept of Health,MHRA,28/09/2016,"Service, Integration & Management",Information Management,REDROCK CONSULTING LTD,600106866,30720.86,862247715
Dept of Health,MHRA,28/09/2016,"Service, Integration & Management",Information Management,REDROCK CONSULTING LTD,600106993,75746.09,862247715
Dept of Health,MHRA,28/09/2016,Software & Licenses,Information Management,SOFTCAT LTD,600106934,109690.12,491848503
Dept of Health,MHRA,29/09/2016,Solicitors,Human Resources,GOVERNMENT LEGAL DEPARTMENT,600107011,83843.99,888823066
Dept of Health,MHRA,30/09/2016,Application Services and Maintenance,Information Management,ACCENTURE,600107091,86053.2,788629066
Dept of Health,MHRA,30/09/2016,Infrastructure Services and Maintenance,Information Management,HEWLETT PACKARD LTD,600107122,31860.6,432995915
